[Event "2019 National Open"]
[Site "Las Vegas"]
[Date "2019.06.14"]
[Round "3"]
[White "Shtembuliak, Evgeny"]
[Black "Zenin, Dmitry"]
[Result "1-0"]
[ECO "E77"]
[WhiteElo "2538"]
[BlackElo "2186"]
[PlyCount "37"]
[EventDate "2019.??.??"]
[TimeControl "5400+30"]
[WhiteClock "0:49:46"]
[BlackClock "0:58:41"]

1. d4 {[%emt 0:00:00]} Nf6 {[%emt 0:00:03]} 2. c4 {[%emt 0:00:04]} g6 {[%emt 0:00:03]} 3. Nc3 {[%emt 0:00:05]} Bg7 {[%emt 0:00:17]} 4. e4 {[%emt 0:00:05]} d6 {[%emt 0:00:04]} 5. Nge2 {[%emt 0:00:09]} O-O {[%emt 0:00:43]} 6. Ng3 {[%emt 0:00:06]} h5 {[%emt 0:01:06]} 7. Be2 {[%emt 0:00:27]} h4 {[%emt 0:00:06]} 8. Nf1 {[%emt 0:00:05]} h3 {[%emt 0:00:04]} 9. gxh3 {[%emt 0:00:08]} Bxh3 {[%emt 0:05:08]} 10. Rg1 {[%emt 0:00:10]} e5 {[%emt 0:04:30]} 11. d5 {[%emt 0:00:07]} Na6 {[%emt 0:03:06]} 12. Bg5 {[%emt 0:04:45]} Qd7 {[%emt 0:09:14]} 13. Nd2 {[%emt 0:19:29]} Nh7 {[%emt 0:04:56]} 14. Be3 {[%emt 0:00:31]} Qe7 {[%emt 0:00:11]} 15. Nf3 {[%emt 0:04:01]} Kh8 {[%emt 0:10:36]} 16. Ng5 {[%emt 0:04:23]} Nxg5 {[%emt 0:06:25]} 17. Bxg5 {[%emt 0:00:10]} Qd7 {[%emt 0:02:07]} 18. Rg3 {[%emt 0:05:51]} Kh7 {[%emt 0:00:35]} 19. Qd3 {[%emt 0:00:13]} 1-0

[Event "2019 National Open"]
[Site "Las Vegas"]
[Date "2019.06.14"]
[Round "3"]
[White "Shabalov, Alexander"]
[Black "Easton, Jack"]
[Result "1-0"]
[ECO "B33"]
[WhiteElo "2528"]
[BlackElo "2163"]
[PlyCount "71"]
[EventDate "2019.??.??"]
[TimeControl "5400+30"]
[WhiteClock "0:00:40"]
[BlackClock "0:40:00"]

1. e4 {[%emt 0:00:00]} c5 {[%emt 0:00:05]} 2. Nf3 {[%emt 0:00:04]} Nc6 {[%emt 0:00:01]} 3. d4 {[%emt 0:00:04]} cxd4 {[%emt 0:00:01]} 4. Nxd4 {[%emt 0:00:04]} Nf6 {[%emt 0:00:01]} 5. Nc3 {[%emt 0:00:04]} e5 {[%emt 0:00:04]} 6. Ndb5 {[%emt 0:00:04]} d6 {[%emt 0:00:00]} 7. Bg5 {[%emt 0:00:08]} a6 {[%emt 0:00:02]} 8. Na3 {[%emt 0:00:04]} b5 {[%emt 0:00:00]} 9. Bxf6 {[%emt 0:00:06]} gxf6 {[%emt 0:00:00]} 10. Nd5 {[%emt 0:00:04]} f5 {[%emt 0:00:04]} 11. Bd3 {[%emt 0:00:11]} Be6 {[%emt 0:00:02]} 12. O-O {[%emt 0:00:06]} Bxd5 {[%emt 0:00:42]} 13. exd5 {[%emt 0:00:05]} Ne7 {[%emt 0:00:09]} 14. Re1 {[%emt 0:00:14]} Bg7 {[%emt 0:00:20]} 15. c3 {[%emt 0:00:05]} O-O {[%emt 0:00:16]} 16. Nc2 {[%emt 0:00:09]} Rc8 {[%emt 0:05:11]} 17. a4 {[%emt 0:12:26]} Rc5 {[%emt 0:06:34]} 18. Nb4 {[%emt 0:01:39]} e4 {[%emt 0:08:59]} 19. Bf1 {[%emt 0:01:10]} a5 {[%emt 0:00:59]} 20. Nc6 {[%emt 0:00:22]} Nxc6 {[%emt 0:00:28]} 21. dxc6 {[%emt 0:00:05]} b4 {[%emt 0:05:45]} 22. cxb4 {[%emt 0:13:18]} axb4 {[%emt 0:10:14]} 23. Qb3 {[%emt 0:00:06]} Rxc6 {[%emt 0:09:09]} 24. a5 {[%emt 0:00:38]} Qc7 {[%emt 0:16:45]} 25. a6 {[%emt 0:02:05]} Rc2 {[%emt 0:04:05]} 26. Re2 {[%emt 0:01:57]} Rxe2 {[%emt 0:07:10]} 27. Bxe2 {[%emt 0:00:00]} Qa7 {[%emt 0:13:45]} 28. Rd1 {[%emt 0:12:40]} Be5 {[%emt 0:08:20]} 29. Qc4 {[%emt 0:13:36]} Bxb2 {[%emt 0:03:40]} 30. Rxd6 {[%emt 0:00:40]} Be5 {[%emt 0:01:03]} 31. Rd5 {[%emt 0:01:31]} Qc7 {[%emt 0:00:05]} 32. g3 {[%emt 0:01:11]} Qxc4 {[%emt 0:01:25]} 33. Bxc4 {[%emt 0:00:05]} Bc7 {[%emt 0:00:29]} 34. Rxf5 {[%emt 0:01:36]} Bb6 {[%emt 0:00:30]} 35. Rb5 {[%emt 0:00:57]} Rb8 {[%emt 0:00:27]} 36. Rxb6 {[%emt 0:00:26]} 1-0

[Event "2019 National Open"]
[Site "Las Vegas"]
[Date "2019.06.14"]
[Round "3"]
[White "Nestorovic, Nikola"]
[Black "Asaria, Danial"]
[Result "1/2-1/2"]
[ECO "A46"]
[WhiteElo "2481"]
[BlackElo "2304"]
[PlyCount "64"]
[EventDate "2019.??.??"]
[TimeControl "5400+30"]
[WhiteClock "0:13:34"]
[BlackClock "0:06:50"]

1. d4 {[%emt 0:00:00]} Nf6 {[%emt 0:00:02]} 2. Nf3 {[%emt 0:00:04]} e6 {[%emt 0:00:16]} 3. e3 {[%emt 0:00:05]} c5 {[%emt 0:00:19]} 4. Bd3 {[%emt 0:00:31]} b6 {[%emt 0:01:32]} 5. O-O {[%emt 0:00:39]} Bb7 {[%emt 0:00:02]} 6. b3 {[%emt 0:01:06]} Nc6 {[%emt 0:00:46]} 7. a3 {[%emt 0:00:06]} d5 {[%emt 0:00:41]} 8. Bb2 {[%emt 0:00:13]} Bd6 {[%emt 0:00:35]} 9. Nbd2 {[%emt 0:00:24]} O-O {[%emt 0:00:02]} 10. c4 {[%emt 0:00:41]} cxd4 {[%emt 0:00:57]} 11. exd4 {[%emt 0:00:13]} Ne7 {[%emt 0:00:50]} 12. Qe2 {[%emt 0:07:38]} Nf5 {[%emt 0:09:13]} 13. Rad1 {[%emt 0:09:04]} Qe7 {[%emt 0:04:33]} 14. a4 {[%emt 0:00:05]} Bb4 {[%emt 0:04:02]} 15. c5 {[%emt 0:09:39]} Rfe8 {[%emt 0:08:48]} 16. Rc1 {[%emt 0:18:11]} Rac8 {[%emt 0:15:08]} 17. Bb5 {[%emt 0:08:20]} Red8 {[%emt 0:00:24]} 18. c6 {[%emt 0:01:20]} Ba8 {[%emt 0:00:26]} 19. Ne5 {[%emt 0:00:35]} Qd6 {[%emt 0:05:32]} 20. Rc2 {[%emt 0:03:31]} Rc7 {[%emt 0:02:09]} 21. Rfc1 {[%emt 0:03:35]} Ba3 {[%emt 0:09:25]} 22. Bxa3 {[%emt 0:18:37]} Qxa3 {[%emt 0:00:24]} 23. Ndf3 {[%emt 0:00:08]} Ne4 {[%emt 0:04:27]} 24. g4 {[%emt 0:04:58]} Ne7 {[%emt 0:02:15]} 25. Nd2 {[%emt 0:01:35]} Nxd2 {[%emt 0:05:07]} 26. Qxd2 {[%emt 0:00:09]} f6 {[%emt 0:01:01]} 27. Nd3 {[%emt 0:00:28]} Qd6 {[%emt 0:00:23]} 28. f4 {[%emt 0:02:41]} Nxc6 {[%emt 0:09:48]} 29. Nb4 {[%emt 0:00:48]} Rdc8 {[%emt 0:00:35]} 30. Bxc6 {[%emt 0:00:29]} Bxc6 {[%emt 0:00:45]} 31. Na6 {[%emt 0:01:00]} Rf7 {[%emt 0:01:47]} 32. Nb4 {[%emt 0:02:17]} Rfc7 {[%emt 0:00:12]} 1/2-1/2

[Event "2019 National Open"]
[Site "Las Vegas"]
[Date "2019.06.14"]
[Round "3"]
[White "Prasanna Raghuram Rao"]
[Black "Sam, Gabriel"]
[Result "0-1"]
[ECO "E21"]
[WhiteElo "2448"]
[BlackElo "2227"]
[PlyCount "99"]
[EventDate "2019.??.??"]
[TimeControl "5400+30"]
[WhiteClock "0:38:35"]
[BlackClock "1:00:54"]

1. d4 {[%emt 0:00:00]} Nf6 {[%emt 0:02:27]} 2. c4 {[%emt 0:00:01]} e6 {[%emt 0:00:01]} 3. Nf3 {[%emt 0:00:33]} Bb4+ {[%emt 0:00:01]} 4. Nc3 {[%emt 0:00:00]} c5 {[%emt 0:00:01]} 5. Qb3 {[%emt 0:09:06]} O-O {[%emt 0:00:01]} 6. dxc5 {[%emt 0:00:01]} Na6 {[%emt 0:45:35]} 7. a3 {[%emt 0:00:02]} Bxc3+ {[%emt 0:00:00]} 8. Qxc3 {[%emt 0:00:00]} Nxc5 {[%emt 0:00:00]} 9. e3 {[%emt 0:00:00]} b6 {[%emt 0:00:00]} 10. Be2 {[%emt 0:00:00]} Bb7 {[%emt 0:00:00]} 11. O-O {[%emt 0:00:00]} d5 {[%emt 0:00:01]} 12. b4 {[%emt 0:00:00]} Nce4 {[%emt 0:00:00]} 13. Qb3 {[%emt 0:00:00]} Rc8 {[%emt 0:14:02]} 14. Bb2 {[%emt 0:00:00]} Qe7 {[%emt 0:00:00]} 15. Rac1 {[%emt 0:00:01]} Rfd8 {[%emt 0:00:01]} 16. cxd5 {[%emt 0:12:49]} exd5 {[%emt 0:00:00]} 17. Bd4 {[%emt 0:09:39]} h6 {[%emt 0:00:01]} 18. h3 {[%emt 0:00:01]} Qe8 {[%emt 0:14:44]} 19. Qb2 {[%emt 0:00:01]} Rxc1 {[%emt 0:11:16]} 20. Rxc1 {[%emt 0:00:00]} Rc8 {[%emt 0:00:00]} 21. Re1 {[%emt 0:00:01]} Qe6 {[%emt 0:00:01]} 22. Bd3 {[%emt 0:00:01]} Ne8 {[%emt 0:05:03]} 23. a4 {[%emt 0:18:02]} N4d6 {[%emt 0:00:01]} 24. a5 {[%emt 0:00:00]} Nc4 {[%emt 0:00:00]} 25. Qa1 {[%emt 0:00:00]} Ra8 {[%emt 0:08:19]} 26. Rc1 {[%emt 0:00:01]} Qe7 {[%emt 0:00:00]} 27. Ne5 {[%emt 0:00:01]} Nxe5 {[%emt 0:00:00]} 28. Bxe5 {[%emt 0:00:02]} Qxb4 {[%emt 0:00:00]} 29. Rb1 {[%emt 0:00:01]} Qe7 {[%emt 0:00:00]} 30. Qd4 {[%emt 0:00:00]} Rd8 {[%emt 0:00:00]} 31. axb6 {[%emt 0:00:00]} axb6 {[%emt 0:00:00]} 32. Bg3 {[%emt 0:00:00]} Qf6 {[%emt 0:00:00]} 33. Rxb6 {[%emt 0:00:01]} Qxd4 {[%emt 0:00:00]} 34. exd4 {[%emt 0:00:00]} Ba8 {[%emt 0:00:00]} 35. Be5 {[%emt 0:00:00]} f6 {[%emt 0:00:00]} 36. Bg3 {[%emt 0:00:01]} Kf7 {[%emt 0:00:00]} 37. Bf5 {[%emt 0:00:01]} g6 {[%emt 0:00:00]} 38. Bd3 {[%emt 0:00:00]} Rc8 {[%emt 0:00:00]} 39. Ra6 {[%emt 0:00:06]} g5 {[%emt 0:00:00]} 40. Bf5 {[%emt 0:00:02]} Rc1+ {[%emt 0:00:00]} 41. Kh2 {[%emt 0:00:01]} Bc6 {[%emt 0:00:00]} 42. Ra7+ {[%emt 0:00:00]} Kf8 {[%emt 0:00:00]} 43. Be6 {[%emt 0:01:23]} Re1 {[%emt 0:00:00]} 44. Rf7+ {[%emt 0:00:01]} Kg8 {[%emt 0:00:00]} 45. Rxf6+ {[%emt 0:00:00]} Kg7 {[%emt 0:00:00]} 46. Rf7+ {[%emt 0:00:00]} Kg6 {[%emt 0:00:00]} 47. Be5 {[%emt 0:01:15]} Ra1 {[%emt 0:00:00]} 48. Rf8 {[%emt 0:00:52]} Ng7 {[%emt 0:00:00]} 49. Bf7+ {[%emt 0:00:00]} Kh7 {[%emt 0:00:00]} 50. Rg8 {[%emt 0:00:00]} 0-1

[Event "2019 National Open"]
[Site "Las Vegas"]
[Date "2019.06.14"]
[Round "3"]
[White "Yanayt, Eugene"]
[Black "Gabuzyan, Hovhannes"]
[Result "1/2-1/2"]
[ECO "A61"]
[WhiteElo "2241"]
[BlackElo "2619"]
[PlyCount "94"]
[EventDate "2019.??.??"]
[TimeControl "5400+30"]
[WhiteClock "0:26:23"]
[BlackClock "0:04:02"]

1. d4 {[%emt 0:00:00]} Nf6 {[%emt 0:13:08]} 2. c4 {[%emt 0:00:08]} c5 {[%emt 0:00:01]} 3. d5 {[%emt 0:00:17]} e6 {[%emt 0:00:00]} 4. Nc3 {[%emt 0:00:17]} exd5 {[%emt 0:00:08]} 5. cxd5 {[%emt 0:00:06]} d6 {[%emt 0:00:01]} 6. Nf3 {[%emt 0:00:38]} g6 {[%emt 0:00:01]} 7. Nd2 {[%emt 0:00:26]} Bg7 {[%emt 0:00:01]} 8. e4 {[%emt 0:00:08]} O-O {[%emt 0:00:01]} 9. Be2 {[%emt 0:00:12]} Na6 {[%emt 0:00:02]} 10. O-O {[%emt 0:00:56]} Ne8 {[%emt 0:00:01]} 11. Nc4 {[%emt 0:08:05]} f5 {[%emt 0:00:01]} 12. exf5 {[%emt 0:03:19]} Bxf5 {[%emt 0:00:03]} 13. Be3 {[%emt 0:04:30]} Rb8 {[%emt 0:00:53]} 14. a4 {[%emt 0:05:23]} Nb4 {[%emt 0:02:07]} 15. Rc1 {[%emt 0:01:30]} b6 {[%emt 0:05:39]} 16. Qd2 {[%emt 0:05:40]} a6 {[%emt 0:00:01]} 17. Rfe1 {[%emt 0:08:55]} Qd7 {[%emt 0:05:50]} 18. f3 {[%emt 0:05:37]} b5 {[%emt 0:01:56]} 19. Na3 {[%emt 0:09:38]} Nc7 {[%emt 0:04:11]} 20. axb5 {[%emt 0:06:10]} axb5 {[%emt 0:00:03]} 21. Kh1 {[%emt 0:02:09]} c4 {[%emt 0:06:55]} 22. Ncxb5 {[%emt 0:03:49]} Nxb5 {[%emt 0:00:35]} 23. Bxc4 {[%emt 0:12:28]} Nxa3 {[%emt 0:00:52]} 24. bxa3 {[%emt 0:00:00]} Nc2 {[%emt 0:02:59]} 25. Rxc2 {[%emt 0:00:00]} Bxc2 {[%emt 0:00:00]} 26. Qxc2 {[%emt 0:00:00]} Rfe8 {[%emt 0:00:30]} 27. Bd3 {[%emt 0:03:18]} Ra8 {[%emt 0:04:07]} 28. Be4 {[%emt 0:05:36]} Rec8 {[%emt 0:00:03]} 29. Qf2 {[%emt 0:01:02]} Rxa3 {[%emt 0:00:05]} 30. Bf4 {[%emt 0:02:33]} Rca8 {[%emt 0:01:25]} 31. h4 {[%emt 0:00:01]} Ra1 {[%emt 0:02:26]} 32. Rxa1 {[%emt 0:01:01]} Rxa1+ {[%emt 0:00:06]} 33. Kh2 {[%emt 0:00:03]} Qe7 {[%emt 0:00:23]} 34. Qg3 {[%emt 0:00:57]} Bd4 {[%emt 0:01:32]} 35. Bf5 {[%emt 0:00:29]} Bf6 {[%emt 0:10:14]} 36. Be6+ {[%emt 0:00:54]} Kg7 {[%emt 0:00:41]} 37. Bxd6 {[%emt 0:00:01]} Qa7 {[%emt 0:00:07]} 38. Qf4 {[%emt 0:01:31]} Qg1+ {[%emt 0:01:11]} 39. Kh3 {[%emt 0:00:54]} Qh1+ {[%emt 0:00:07]} 40. Kg3 {[%emt 0:00:37]} Qe1+ {[%emt 0:00:09]} 41. Kh2 {[%emt 0:02:27]} Ra8 {[%emt 0:12:52]} 42. Kh3 {[%emt 0:07:19]} Qh1+ {[%emt 0:00:08]} 43. Kg3 {[%emt 0:01:02]} Qe1+ {[%emt 0:02:10]} 44. Kh3 {[%emt 0:00:00]} h5 {[%emt 0:01:08]} 45. Be7 {[%emt 0:00:00]} Qh1+ {[%emt 0:00:10]} 46. Kg3 {[%emt 0:00:00]} Qe1+ {[%emt 0:00:56]} 47. Kh3 {[%emt 0:00:00]} Qh1+ {[%emt 0:01:08]} 1/2-1/2

[Event "2019 National Open"]
[Site "Las Vegas"]
[Date "2019.06.14"]
[Round "3"]
[White "Ghatti, Sanjay"]
[Black "Quesada Perez, Yasser"]
[Result "0-1"]
[ECO "C77"]
[WhiteElo "2190"]
[BlackElo "2577"]
[PlyCount "156"]
[EventDate "2019.??.??"]
[TimeControl "5400+30"]
[WhiteClock "0:01:42"]
[BlackClock "0:31:00"]

1. e4 {[%emt 0:00:00]} e5 {[%emt 0:00:14]} 2. Nf3 {[%emt 0:00:00]} Nc6 {[%emt 0:00:03]} 3. Bb5 {[%emt 0:00:03]} a6 {[%emt 0:00:07]} 4. Ba4 {[%emt 0:00:03]} Nf6 {[%emt 0:00:06]} 5. d3 {[%emt 0:00:03]} b5 {[%emt 0:00:16]} 6. Bb3 {[%emt 0:00:02]} Be7 {[%emt 0:00:12]} 7. a4 {[%emt 0:00:13]} Bb7 {[%emt 0:01:33]} 8. Nc3 {[%emt 0:00:47]} b4 {[%emt 0:02:18]} 9. Nd5 {[%emt 0:00:20]} Na5 {[%emt 0:01:58]} 10. Nxf6+ {[%emt 0:02:59]} Bxf6 {[%emt 0:00:09]} 11. Ba2 {[%emt 0:00:00]} O-O {[%emt 0:02:27]} 12. O-O {[%emt 0:00:16]} c5 {[%emt 0:02:42]} 13. Be3 {[%emt 0:01:09]} c4 {[%emt 0:10:49]} 14. Bc5 {[%emt 0:02:11]} Be7 {[%emt 0:00:02]} 15. Bxe7 {[%emt 0:00:25]} Qxe7 {[%emt 0:00:01]} 16. Nd2 {[%emt 0:05:25]} b3 {[%emt 0:00:00]} 17. Bb1 {[%emt 0:04:19]} bxc2 {[%emt 0:07:59]} 18. Bxc2 {[%emt 0:01:05]} cxd3 {[%emt 0:00:43]} 19. Bxd3 {[%emt 0:00:04]} Qb4 {[%emt 0:02:03]} 20. Nf3 {[%emt 0:10:08]} d6 {[%emt 0:04:27]} 21. Qd2 {[%emt 0:01:30]} Qb6 {[%emt 0:04:04]} 22. Ra3 {[%emt 0:01:07]} Nb3 {[%emt 0:02:58]} 23. Qe2 {[%emt 0:01:32]} h6 {[%emt 0:05:49]} 24. Bc4 {[%emt 0:02:25]} Nc5 {[%emt 0:16:36]} 25. Re3 {[%emt 0:00:00]} Qd8 {[%emt 0:06:29]} 26. Rd1 {[%emt 0:03:19]} Qe7 {[%emt 0:06:12]} 27. b3 {[%emt 0:00:55]} a5 {[%emt 0:01:05]} 28. g3 {[%emt 0:00:48]} Kh7 {[%emt 0:01:55]} 29. Nh4 {[%emt 0:01:54]} g6 {[%emt 0:00:03]} 30. f3 {[%emt 0:05:45]} Ba6 {[%emt 0:10:28]} 31. Ng2 {[%emt 0:00:28]} Bxc4 {[%emt 0:10:37]} 32. Qxc4 {[%emt 0:00:00]} Ne6 {[%emt 0:00:00]} 33. Rc3 {[%emt 0:00:00]} Nd4 {[%emt 0:00:01]} 34. Ne3 {[%emt 0:02:56]} Rac8 {[%emt 0:00:49]} 35. Rxd4 {[%emt 0:03:14]} exd4 {[%emt 0:00:00]} 36. Qxd4 {[%emt 0:00:07]} Qe5 {[%emt 0:00:00]} 37. Qxe5 {[%emt 0:00:16]} dxe5 {[%emt 0:00:00]} 38. Rxc8 {[%emt 0:00:17]} Rxc8 {[%emt 0:00:00]} 39. Nc4 {[%emt 0:00:03]} Ra8 {[%emt 0:00:00]} 40. Kf2 {[%emt 0:01:28]} f5 {[%emt 0:00:00]} 41. exf5 {[%emt 0:01:37]} gxf5 {[%emt 0:00:00]} 42. Nxe5 {[%emt 0:01:13]} Rb8 {[%emt 0:00:00]} 43. Nc4 {[%emt 0:00:01]} Rxb3 {[%emt 0:00:00]} 44. Nxa5 {[%emt 0:00:21]} Rb2+ {[%emt 0:00:00]} 45. Kg1 {[%emt 0:00:00]} Ra2 {[%emt 0:00:00]} 46. Nc4 {[%emt 0:00:51]} h5 {[%emt 0:03:08]} 47. Ne3 {[%emt 0:01:59]} Kg6 {[%emt 0:03:02]} 48. Ng2 {[%emt 0:00:01]} Kf6 {[%emt 0:00:00]} 49. Nh4 {[%emt 0:00:01]} Kg5 {[%emt 0:00:00]} 50. a5 {[%emt 0:00:35]} Rxa5 {[%emt 0:00:00]} 51. Kg2 {[%emt 0:00:24]} f4 {[%emt 0:00:00]} 52. Kh3 {[%emt 0:01:26]} Ra3 {[%emt 0:00:00]} 53. Kg2 {[%emt 0:00:37]} Ra2+ {[%emt 0:00:00]} 54. Kh3 {[%emt 0:03:28]} Rf2 {[%emt 0:00:00]} 55. Ng2 {[%emt 0:00:00]} fxg3 {[%emt 0:00:00]} 56. Kxg3 {[%emt 0:01:26]} Ra2 {[%emt 0:00:00]} 57. h4+ {[%emt 0:00:23]} Kf5 {[%emt 0:00:00]} 58. Ne3+ {[%emt 0:01:23]} Ke5 {[%emt 0:00:03]} 59. Ng2 {[%emt 0:00:04]} Ra8 {[%emt 0:01:05]} 60. Kf2 {[%emt 0:00:01]} Rg8 {[%emt 0:00:26]} 61. Ne3 {[%emt 0:00:30]} Ra8 {[%emt 0:03:34]} 62. Ng2 {[%emt 0:00:03]} Kd4 {[%emt 0:01:10]} 63. Nf4 {[%emt 0:00:32]} Ra2+ {[%emt 0:00:33]} 64. Kg3 {[%emt 0:00:02]} Ra5 {[%emt 0:00:00]} 65. Ng2 {[%emt 0:00:28]} Kd3 {[%emt 0:00:13]} 66. Nf4+ {[%emt 0:00:24]} Ke3 {[%emt 0:00:27]} 67. Ng2+ {[%emt 0:00:06]} Ke2 {[%emt 0:00:43]} 68. Nf4+ {[%emt 0:00:00]} Kf1 {[%emt 0:00:11]} 69. Ne6 {[%emt 0:00:51]} Ra8 {[%emt 0:02:08]} 70. Kf4 {[%emt 0:01:55]} Kg2 {[%emt 0:00:57]} 71. Ng7 {[%emt 0:02:40]} Ra5 {[%emt 0:00:01]} 72. Nf5 {[%emt 0:01:51]} Rb5 {[%emt 0:00:00]} 73. Ng7 {[%emt 0:02:19]} Kh3 {[%emt 0:02:06]} 74. Nf5 {[%emt 0:01:21]} Ra5 {[%emt 0:00:00]} 75. Ke4 {[%emt 0:05:46]} Ra4+ {[%emt 0:00:22]} 76. Ke3 {[%emt 0:01:08]} Rb4 {[%emt 0:01:14]} 77. Kf2 {[%emt 0:04:14]} Rb5 {[%emt 0:00:15]} 78. Ne3 {[%emt 0:00:23]} Rb2+ {[%emt 0:00:25]} 0-1

[Event "2019 National Open"]
[Site "Las Vegas"]
[Date "2019.06.13"]
[Round "3"]
[White "Zavortink, Matt"]
[Black "Shetty, Atulya"]
[Result "0-1"]
[ECO "A07"]
[WhiteElo "2156"]
[BlackElo "2431"]
[PlyCount "90"]
[EventDate "2019.??.??"]
[TimeControl "5400+30"]
[WhiteClock "0:29:36"]
[BlackClock "0:17:56"]

1. Nf3 {[%emt 0:00:00]} d5 {[%emt 0:00:15]} 2. g3 {[%emt 0:00:41]} Nf6 {[%emt 0:00:01]} 3. Bg2 {[%emt 0:00:07]} Nbd7 {[%emt 0:04:50]} 4. d4 {[%emt 0:08:11]} c5 {[%emt 0:00:00]} 5. c4 {[%emt 0:06:27]} dxc4 {[%emt 0:03:05]} 6. O-O {[%emt 0:07:20]} e6 {[%emt 0:01:37]} 7. Na3 {[%emt 0:21:23]} Be7 {[%emt 0:11:21]} 8. dxc5 {[%emt 0:09:27]} Bxc5 {[%emt 0:02:02]} 9. Nxc4 {[%emt 0:00:00]} O-O {[%emt 0:01:12]} 10. Bf4 {[%emt 0:08:18]} Nd5 {[%emt 0:03:14]} 11. Bd6 {[%emt 0:03:35]} Bxd6 {[%emt 0:00:44]} 12. Nxd6 {[%emt 0:00:00]} N7b6 {[%emt 0:06:13]} 13. Ne4 {[%emt 0:02:45]} Qe7 {[%emt 0:04:40]} 14. Qd4 {[%emt 0:08:54]} Bd7 {[%emt 0:00:01]} 15. Rfd1 {[%emt 0:04:39]} Rac8 {[%emt 0:03:38]} 16. Rac1 {[%emt 0:00:43]} Bb5 {[%emt 0:01:57]} 17. e3 {[%emt 0:01:21]} Rfd8 {[%emt 0:08:19]} 18. Rxc8 {[%emt 0:09:10]} Rxc8 {[%emt 0:00:00]} 19. Qe5 {[%emt 0:03:08]} Be2 {[%emt 0:08:22]} 20. Re1 {[%emt 0:00:42]} Bd3 {[%emt 0:00:00]} 21. Qd4 {[%emt 0:01:39]} Bb5 {[%emt 0:00:00]} 22. Qe5 {[%emt 0:00:00]} Rd8 {[%emt 0:03:53]} 23. Rd1 {[%emt 0:00:03]} Be2 {[%emt 0:00:01]} 24. Re1 {[%emt 0:02:36]} Bd3 {[%emt 0:00:00]} 25. Nc3 {[%emt 0:00:11]} Nb4 {[%emt 0:09:09]} 26. Qg5 {[%emt 0:00:00]} f6 {[%emt 0:00:00]} 27. Qh4 {[%emt 0:00:00]} Bg6 {[%emt 0:00:01]} 28. Bh3 {[%emt 0:01:09]} Bf7 {[%emt 0:00:00]} 29. Nd4 {[%emt 0:00:00]} Nd3 {[%emt 0:00:00]} 30. Rb1 {[%emt 0:00:00]} Ne5 {[%emt 0:00:00]} 31. Bg2 {[%emt 0:00:00]} Nbc4 {[%emt 0:00:01]} 32. Kh1 {[%emt 0:00:00]} g5 {[%emt 0:00:00]} 33. Qh3 {[%emt 0:00:00]} h5 {[%emt 0:00:03]} 34. Be4 {[%emt 0:00:00]} Nd2 {[%emt 0:00:00]} 35. Ra1 {[%emt 0:00:00]} Nxe4 {[%emt 0:00:01]} 36. Nxe4 {[%emt 0:00:00]} Nd3 {[%emt 0:00:00]} 37. Qg2 {[%emt 0:00:00]} Bg6 {[%emt 0:00:01]} 38. Kg1 {[%emt 0:00:00]} e5 {[%emt 0:00:02]} 39. Nb5 {[%emt 0:00:00]} Nxb2 {[%emt 0:00:03]} 40. f4 {[%emt 0:00:00]} exf4 {[%emt 0:00:00]} 41. Qxb2 {[%emt 0:00:00]} Qxe4 {[%emt 0:02:36]} 42. exf4 {[%emt 0:00:00]} gxf4 {[%emt 0:02:31]} 43. gxf4 {[%emt 0:00:00]} Qxf4 {[%emt 0:00:43]} 44. Qg2 {[%emt 0:00:00]} Qe3+ {[%emt 0:02:03]} 45. Kh1 {[%emt 0:00:00]} Kh7 {[%emt 0:00:15]} 0-1

[Event "2019 National Open"]
[Site "Las Vegas"]
[Date "2019.06.14"]
[Round "3"]
[White "Feinstein, Michael"]
[Black "Katz, Alexander"]
[Result "0-1"]
[ECO "B09"]
[WhiteElo "2142"]
[BlackElo "2427"]
[PlyCount "64"]
[EventDate "2019.??.??"]
[TimeControl "5400+30"]
[WhiteClock "0:21:11"]
[BlackClock "0:02:14"]

1. d4 {[%emt 0:00:00]} d6 {[%emt 0:00:05]} 2. e4 {[%emt 0:00:29]} Nf6 {[%emt 0:00:04]} 3. Nc3 {[%emt 0:00:06]} g6 {[%emt 0:00:03]} 4. f4 {[%emt 0:00:19]} Bg7 {[%emt 0:00:04]} 5. Nf3 {[%emt 0:00:16]} O-O {[%emt 0:00:05]} 6. Bd3 {[%emt 0:00:12]} Nc6 {[%emt 0:00:16]} 7. e5 {[%emt 0:02:14]} dxe5 {[%emt 0:00:05]} 8. fxe5 {[%emt 0:00:10]} Nh5 {[%emt 0:00:07]} 9. Ne2 {[%emt 0:09:40]} Bg4 {[%emt 0:02:23]} 10. c3 {[%emt 0:05:51]} Bxf3 {[%emt 0:00:44]} 11. gxf3 {[%emt 0:00:03]} e6 {[%emt 0:00:07]} 12. Be3 {[%emt 0:01:44]} Ne7 {[%emt 0:00:37]} 13. Qd2 {[%emt 0:10:46]} c5 {[%emt 0:16:20]} 14. Ng3 {[%emt 0:09:14]} cxd4 {[%emt 0:03:44]} 15. cxd4 {[%emt 0:00:59]} Nxg3 {[%emt 0:06:04]} 16. hxg3 {[%emt 0:00:06]} f5 {[%emt 0:02:53]} 17. Qh2 {[%emt 0:12:01]} h5 {[%emt 0:00:41]} 18. g4 {[%emt 0:08:17]} fxg4 {[%emt 0:05:53]} 19. fxg4 {[%emt 0:00:57]} Rf3 {[%emt 0:00:47]} 20. Qe2 {[%emt 0:03:20]} Qd5 {[%emt 0:00:41]} 21. Rg1 {[%emt 0:01:41]} Nc6 {[%emt 0:08:07]} 22. O-O-O {[%emt 0:21:47]} Nb4 {[%emt 0:06:20]} 23. b3 {[%emt 0:00:17]} Rc8+ {[%emt 0:00:40]} 24. Kb2 {[%emt 0:01:41]} Nxd3+ {[%emt 0:10:01]} 25. Qxd3 {[%emt 0:00:43]} h4 {[%emt 0:01:25]} 26. Rge1 {[%emt 0:05:35]} Kh7 {[%emt 0:03:00]} 27. Rh1 {[%emt 0:02:11]} h3 {[%emt 0:00:17]} 28. Qd2 {[%emt 0:00:57]} Qe4 {[%emt 0:02:40]} 29. Rde1 {[%emt 0:00:15]} Qxg4 {[%emt 0:00:47]} 30. Rh2 {[%emt 0:00:59]} Rd8 {[%emt 0:07:10]} 31. Qc2 {[%emt 0:00:59]} Rxd4 {[%emt 0:01:44]} 32. Rg1 {[%emt 0:00:00]} Qe4 {[%emt 0:00:55]} 0-1